bitfinex-derivatives/quotes_BTCF0:USTF0_20251119
["timestamp","ask_amount","ask_price","bid_price","bid_amount"]
[1763570469418,0.097,89671.0,89670.0,0.04682803]
[1763570469619,0.32607875,89688.0,89687.0,0.05685]
[1763570469928,0.01303,89713.0,89687.0,0.04682803]
[1763570470130,0.0434,89688.0,89687.0,0.00219803]
[1763570471522,0.0444,89688.0,89687.0,0.00219803]
[1763570473027,0.0434,89688.0,89687.0,0.00219803]
[1763570473326,0.0454,89688.0,89687.0,0.00219803]
[1763570473723,0.0444,89688.0,89687.0,0.00219803]
[1763570473926,0.0454,89688.0,89687.0,0.00219803]
[1763570474430,0.002,89688.0,89687.0,0.03387803]
[1763570474623,0.001,89688.0,89687.0,0.03387803]
[1763570474826,0.002,89688.0,89687.0,0.03387803]
[1763570475218,0.002,89688.0,89687.0,0.14546063]
[1763570475419,0.00016725,89709.0,89687.0,0.00219803]
[1763570475727,0.00016725,89709.0,89690.0,0.21073151]
[1763570475930,0.04356725,89709.0,89708.0,0.00219803]
[1763570476426,0.0434,89701.0,89700.0,0.00016725]
[1763570476621,0.0434,89701.0,89670.0,0.21073151]
[1763570476927,0.0212,89681.0,89671.0,0.00219803]
[1763570477722,0.00016725,89685.0,89684.0,0.03202]
[1763570477919,0.00016725,89685.0,89684.0,0.03421803]
[1763570478321,0.02136725,89685.0,89684.0,0.01820803]
[1763570478920,0.04356725,89685.0,89684.0,0.00219803]
[1763570479226,0.00016725,89685.0,89684.0,0.03421803]
[1763570479420,0.01303,89698.0,89684.0,0.03421803]
[1763570479621,0.21073151,89730.0,89697.0,0.03202]
[1763570479822,0.0434,89699.0,89698.0,0.00219803]
[1763570480619,0.21073151,89710.0,89690.0,0.00016725]
[1763570480620,0.0434,89691.0,89690.0,0.00016725]
[1763570480927,0.0434,89691.0,89690.0,0.00236528]
[1763570481226,0.01303,89698.0,89690.0,0.03438528]
[1763570481432,0.00016725,89707.0,89690.0,0.03438528]
[1763570481433,0.00016725,89707.0,89697.0,0.03202]
[1763570481730,0.00016725,89707.0,89690.0,0.00236528]
[1763570481731,0.04356725,89707.0,89706.0,0.00219803]
[1763570483035,0.04456725,89707.0,89706.0,0.00219803]
[1763570483221,0.0212,89691.0,89690.0,0.00016725]
[1763570483421,0.0434,89691.0,89690.0,0.00236528]
[1763570486722,0.0444,89691.0,89690.0,0.00236528]
[1763570487034,0.0444,89691.0,89690.0,0.00016725]
[1763570487230,0.0444,89691.0,89660.0,0.21073151]
[1763570487231,0.0444,89691.0,89667.0,0.1116062]
[1763570487429,0.0444,89691.0,89668.0,0.00219803]
[1763570487430,0.04421,89669.0,89668.0,0.00219803]
[1763570488336,0.04421,89669.0,89620.0,0.00999999]
[1763570488337,0.04421,89669.0,89600.0,0.26414801]
[1763570488537,0.05548,89671.0,89641.0,0.00219803]
[1763570488538,0.04421,89642.0,89641.0,0.00219803]
[1763570489428,0.01291,89648.0,89641.0,0.01837803]
[1763570489634,0.04421,89642.0,89641.0,0.00219803]
[1763570490233,0.04421,89634.0,89633.0,0.00016725]
[1763570490434,0.04421,89634.0,89633.0,0.00236528]
[1763570490632,0.01291,89648.0,89633.0,0.03472528]
[1763570490830,0.01291,89648.0,89638.0,0.21073151]
[1763570491034,0.05712,89648.0,89647.0,0.00219803]
[1763570491534,0.00016725,89650.0,89649.0,0.03236]
[1763570491725,0.05907205,89708.0,89649.0,0.00219803]
[1763570491726,0.01276,89698.0,89649.0,0.00219803]
[1763570492032,0.01276,89698.0,89660.0,0.21073151]
[1763570492033,0.01139632,89694.0,89660.0,0.21073151]
[1763570492233,0.05718,89674.0,89673.0,0.00219803]
[1763570492432,0.02032,89695.0,89673.0,0.00219803]
[1763570492433,0.02032,89695.0,89673.0,0.03455803]
[1763570492934,0.00016735,89687.0,89673.0,0.14615693]
[1763570493333,0.00016735,89687.0,89686.0,0.03236]
[1763570493536,0.00016735,89687.0,89686.0,0.03455803]
[1763570493937,0.10848,89728.0,89697.0,0.01618]
[1763570494137,0.10848,89728.0,89698.0,0.00219803]
[1763570494840,0.00016725,89714.0,89698.0,0.00219803]
[1763570495133,0.04427,89699.0,89698.0,0.00219803]
[1763570496335,0.01391,89712.0,89699.0,0.01618]
[1763570496638,0.01391,89712.0,89703.0,0.1115619]
[1763570496839,0.00016725,89714.0,89711.0,0.01837803]
[1763570497233,0.00016725,89714.0,89713.0,0.03236]
[1763570497433,0.00016725,89714.0,89713.0,0.03455803]
[1763570498038,0.05907205,89758.0,89713.0,0.03455803]
[1763570498039,0.00027863,89726.0,89725.0,0.01618]
[1763570498342,0.00027863,89726.0,89725.0,0.03455803]
[1763570498632,0.01276,89760.0,89725.0,0.00219803]
[1763570498841,0.01276,89760.0,89735.0,0.21073151]
[1763570499025,0.00016714,89756.0,89739.0,0.00016714]
[1763570499226,0.00016714,89756.0,89740.0,0.00219803]
[1763570499825,0.04427,89741.0,89740.0,0.00219803]
[1763570501036,0.04527,89741.0,89740.0,0.00219803]
[1763570501341,0.001,89741.0,89740.0,0.00219803]
[1763570501542,0.001,89741.0,89740.0,0.01837803]
[1763570502037,0.001,89741.0,89740.0,0.03455803]
[1763570502432,0.04527,89741.0,89740.0,0.00219803]
[1763570502633,0.04527,89741.0,89714.0,0.06009721]
[1763570502634,0.04427,89740.0,89714.0,0.03978566]
[1763570502836,0.01276,89730.0,89721.0,0.03781267]
[1763570503030,0.00219803,89729.0,89721.0,0.03781267]
[1763570503633,0.04427,89722.0,89721.0,0.00073267]
[1763570503938,0.04646803,89722.0,89721.0,0.00073267]
[1763570504131,0.04646803,89722.0,89721.0,0.01927267]
[1763570504132,0.00219803,89722.0,89721.0,0.01927267]
[1763570504527,0.00016714,89734.0,89722.0,0.1115389]
[1763570504728,0.00016714,89734.0,89732.0,0.03708]
[1763570504729,0.00219803,89733.0,89732.0,0.03708]
[1763570505030,0.00219803,89733.0,89732.0,0.03781267]
[1763570505231,0.01276,89760.0,89734.0,0.1115234]
[1763570505446,0.00219803,89759.0,89750.0,0.21073151]
[1763570505741,0.04646803,89759.0,89758.0,0.00073267]
[1763570506139,0.0002785,89766.0,89758.0,0.03781267]
[1763570506338,0.0002785,89766.0,89765.0,0.03708]
[1763570506339,0.00247653,89766.0,89765.0,0.03708]
[1763570506638,0.04674653,89766.0,89765.0,0.00073267]
[1763570507034,0.04427,89754.0,89753.0,0.00016714]
[1763570507238,0.04646803,89754.0,89753.0,0.00089981]
[1763570507737,0.04646803,89754.0,89718.0,0.06009721]
[1763570507738,0.04646803,89754.0,89730.0,0.21073151]
[1763570507939,0.04646803,89754.0,89731.0,0.00073267]
[1763570508235,0.04427,89732.0,89731.0,0.00073267]
[1763570508437,0.04646803,89732.0,89731.0,0.00073267]
[1763570508935,0.02446803,89732.0,89731.0,0.00073267]
[1763570509239,0.00016714,89740.0,89735.0,0.1115222]
[1763570509434,0.00219803,89739.0,89735.0,0.1115222]
[1763570509634,0.00016714,89740.0,89739.0,0.03742]
[1763570509834,0.00016714,89740.0,89739.0,0.03815267]
[1763570510235,0.0002785,89766.0,89739.0,0.00073267]
[1763570510434,0.00219803,89760.0,89759.0,0.01871]
[1763570510630,0.00219803,89760.0,89759.0,0.01944267]
[1763570511441,0.00219803,89760.0,89759.0,0.00073267]
[1763570511837,0.0002785,89766.0,89763.0,0.111488]
[1763570512038,0.0002785,89766.0,89765.0,0.03961803]
[1763570512237,0.7552957,89828.0,89766.0,0.00755]
[1763570512439,0.24213594,89820.0,89790.0,0.21073151]
[1763570512645,0.04427,89792.0,89791.0,0.00219803]
[1763570512945,0.59851423,89827.0,89791.0,0.00219803]
[1763570513154,0.55897853,89827.0,89791.0,0.00219803]
[1763570513442,0.00010894,89810.0,89792.0,0.00016704]
[1763570513641,0.00010894,89810.0,89793.0,0.00219803]
[1763570513844,0.00010894,89810.0,89800.0,0.21073151]
[1763570514037,0.04437894,89810.0,89800.0,0.00219803]
[1763570514241,0.04427,89801.0,89800.0,0.00219803]
[1763570514845,0.04427,89793.0,89792.0,0.00016704]
[1763570515036,0.04427,89793.0,89792.0,0.00236507]
[1763570515441,0.04427,89793.0,89792.0,0.00016704]
[1763570515742,0.04427,89793.0,89744.0,0.01104446]
[1763570515934,0.1084,89807.0,89759.0,0.00219803]
[1763570515935,0.21073151,89790.0,89759.0,0.00219803]
[1763570516135,0.21073151,89800.0,89760.0,0.21073151]
[1763570516341,0.21073151,89800.0,89761.0,0.00219803]
[1763570516539,0.01276,89784.0,89772.0,0.00016704]
[1763570516745,0.04427,89774.0,89773.0,0.00219803]
[1763570517842,0.00016704,89789.0,89773.0,0.03961803]
[1763570518043,0.00016704,89789.0,89778.0,0.1114694]
[1763570518342,0.00016704,89789.0,89774.0,0.26360995]
[1763570518343,0.00016704,89789.0,89788.0,0.00219803]
[1763570518937,0.04443704,89789.0,89788.0,0.00219803]
[1763570519138,0.00016704,89789.0,89788.0,0.00219803]
[1763570519344,0.00016704,89789.0,89788.0,0.03961803]
[1763570521441,0.00027838,89806.0,89788.0,0.00319803]
[1763570521752,0.00027838,89806.0,89791.0,0.1114521]
[1763570521950,0.04491,89793.0,89792.0,0.00219803]
[1763570522349,0.02167,89793.0,89792.0,0.00219803]
[1763570522554,0.00010894,89801.0,89792.0,0.00219803]
[1763570522853,0.04491,89793.0,89792.0,0.00219803]
[1763570523050,0.00010894,89801.0,89788.0,0.001]
[1763570523051,0.04491,89789.0,89788.0,0.001]
[1763570523249,0.04491,89785.0,89784.0,0.00016704]
[1763570523652,0.02167,89785.0,89784.0,0.00236507]
[1763570523855,0.04491,89785.0,89784.0,0.00236507]
[1763570524152,0.04491,89785.0,89784.0,0.00016704]
[1763570524342,0.01399,89784.0,89752.0,0.03978566]
[1763570524546,0.01399,89784.0,89760.0,0.26360995]
[1763570524850,0.01399,89784.0,89761.0,0.00219803]
[1763570525353,0.00016704,89781.0,89770.0,0.26360995]
[1763570525554,0.00016704,89781.0,89771.0,0.00219803]
[1763570525750,0.04491,89772.0,89771.0,0.00219803]
[1763570526349,0.00016704,89781.0,89771.0,0.00219803]
[1763570526551,0.00016704,89781.0,89772.0,0.1114769]
[1763570526753,0.00016704,89781.0,89780.0,0.00219803]
[1763570527051,0.04507704,89781.0,89780.0,0.00219803]
[1763570527252,0.04507704,89781.0,89764.0,0.00016704]
[1763570527457,0.04507704,89781.0,89765.0,0.00219803]
[1763570527847,0.04491,89766.0,89765.0,0.00219803]
[1763570528246,0.00016704,89781.0,89765.0,0.00219803]
[1763570528852,0.00016704,89781.0,89765.0,0.00319803]
[1763570529251,0.00016704,89781.0,89771.0,0.1114781]
[1763570529456,0.00016704,89781.0,89780.0,0.00219803]
[1763570529848,0.00016704,89781.0,89780.0,0.04161803]
[1763570530454,0.04507704,89781.0,89780.0,0.00219803]
[1763570531253,0.00016704,89781.0,89780.0,0.00219803]
[1763570531444,0.00016704,89781.0,89780.0,0.15308503]
[1763570531648,0.01399,89802.0,89780.0,0.04161803]
[1763570531855,0.01399,89802.0,89781.0,0.1114651]
[1763570532057,0.01399,89802.0,89783.0,0.1114632]
[1763570532249,0.04491,89785.0,89784.0,0.00219803]
[1763570532947,0.02167,89785.0,89784.0,0.00219803]
[1763570533152,0.04491,89785.0,89784.0,0.00219803]
[1763570533349,0.00010894,89793.0,89784.0,0.00319803]
[1763570533551,0.02167,89785.0,89784.0,0.00319803]
[1763570533954,0.04491,89785.0,89784.0,0.00319803]
[1763570534258,0.04491,89785.0,89784.0,0.00219803]
[1763570536057,0.00010894,89793.0,89792.0,0.03942]
[1763570536361,0.0395357,89829.0,89792.0,0.04161803]
[1763570536561,0.06764,89830.0,89792.0,0.00219803]
[1763570536751,0.04491,89793.0,89792.0,0.00219803]
[1763570536958,0.0395357,89820.0,89792.0,0.00219803]
[1763570537259,0.33124995,89830.0,89792.0,0.04161803]
[1763570537260,0.001,89793.0,89792.0,0.04161803]
[1763570537464,0.00127838,89806.0,89792.0,0.04161803]
[1763570537758,0.00127838,89806.0,89792.0,0.00219803]
[1763570538447,0.00127838,89806.0,89793.0,0.1114504]
[1763570538653,0.00127838,89806.0,89805.0,0.00219803]
[1763570538848,0.04618838,89806.0,89805.0,0.00219803]
[1763570539058,0.04518838,89806.0,89805.0,0.00219803]
[1763570540560,0.04618838,89806.0,89805.0,0.00219803]
[1763570540760,0.04718838,89806.0,89805.0,0.00219803]
[1763570541059,0.00227838,89806.0,89805.0,0.00219803]
[1763570541655,0.00227838,89806.0,89805.0,0.04161803]
[1763570541853,0.01276,89828.0,89809.0,0.1114302]
[1763570542052,0.05767,89828.0,89827.0,0.00219803]
[1763570543154,0.001,89828.0,89827.0,0.02190803]
[1763570543550,0.00027826,89846.0,89827.0,0.04161803]
[1763570543755,0.00027826,89846.0,89830.0,0.03978566]
[1763570543954,0.02167,89832.0,89831.0,0.00219803]
[1763570544248,0.04491,89832.0,89831.0,0.00219803]
[1763570546959,0.00027826,89846.0,89831.0,0.04161803]
[1763570547559,0.00027826,89846.0,89845.0,0.03942]
[1763570547758,0.04470826,89846.0,89845.0,0.00219803]
[1763570548461,0.04470826,89846.0,89831.0,0.001]
[1763570548787,0.04443,89833.0,89832.0,0.00219803]
[1763570549760,0.00027826,89846.0,89845.0,0.01971]
[1763570549964,0.00027826,89846.0,89845.0,0.04161803]
[1763570550158,0.04470826,89846.0,89845.0,0.00219803]
[1763570550666,0.02345826,89846.0,89845.0,0.00219803]
[1763570550862,0.02345826,89846.0,89845.0,0.04161803]
[1763570550863,0.00027826,89846.0,89845.0,0.04161803]
[1763570551067,0.7028,89871.0,89847.0,0.1113831]
[1763570551368,0.7028,89871.0,89851.0,0.1113789]
[1763570551567,0.7028,89871.0,89850.0,0.26377688]
[1763570551568,0.7028,89871.0,89860.0,0.26360995]
[1763570551768,0.02318,89871.0,89870.0,0.00219803]
[1763570552357,0.04505,89871.0,89870.0,0.00219803]
[1763570552859,0.0395357,89916.0,89870.0,0.00219803]
[1763570553167,0.01134435,89934.0,89900.0,0.26360995]
[1763570553358,0.01134435,89934.0,89885.0,0.1113365]
[1763570553359,0.7216,89901.0,89884.0,0.00016693]
[1763570553560,0.01326,89896.0,89885.0,0.00219803]
[1763570553760,0.3608,89889.0,89885.0,0.00219803]
[1763570555764,0.3608,89889.0,89888.0,0.03942]
[1763570555970,0.3608,89889.0,89888.0,0.04161803]
[1763570556455,0.40379,89889.0,89888.0,0.00219803]
[1763570556655,0.38192,89889.0,89888.0,0.00219803]
[1763570557261,0.38192,89889.0,89888.0,0.00319803]
[1763570557461,0.40379,89889.0,89888.0,0.00319803]
[1763570557661,0.04299,89886.0,89885.0,0.001]
[1763570557864,0.04299,89886.0,89884.0,0.00016693]
[1763570557865,0.04299,89885.0,89884.0,0.00016693]
[1763570558072,0.04299,89885.0,89870.0,0.26360995]
[1763570558365,0.3608,89871.0,89870.0,0.28331995]
[1763570558568,0.3608,89871.0,89870.0,0.02190803]
[1763570559264,0.3608,89871.0,89870.0,0.02290803]
[1763570559659,0.40379,89871.0,89870.0,0.00319803]
[1763570560065,0.3608,89871.0,89870.0,0.04361803]
[1763570560264,0.01342625,89879.0,89870.0,0.00419803]
[1763570560470,0.01342625,89879.0,89870.0,0.00319803]
[1763570560670,0.3608,89871.0,89870.0,0.00419803]
[1763570561468,0.3608,89871.0,89870.0,0.04361803]
[1763570561666,0.00016625,89879.0,89878.0,0.03942]
[1763570561867,0.00016625,89879.0,89878.0,0.04161803]
[1763570562369,0.04315625,89879.0,89878.0,0.00219803]
[1763570562764,0.00016625,89879.0,89878.0,0.04161803]
[1763570563371,0.02128625,89879.0,89878.0,0.00219803]
[1763570563670,0.04315625,89879.0,89878.0,0.00219803]
[1763570565073,0.04315625,89879.0,89862.0,0.00016683]
[1763570565074,0.04299,89863.0,89862.0,0.00016683]
[1763570565374,0.76459,89863.0,89862.0,0.00236486]
[1763570566068,0.76459,89863.0,89830.0,0.16399723]
[1763570566267,0.04299,89863.0,89841.0,0.00219803]
[1763570566466,0.1084,89864.0,89841.0,0.00219803]
[1763570566467,0.74272,89842.0,89841.0,0.00219803]
[1763570566669,0.74272,89842.0,89841.0,0.04161803]
[1763570566670,0.7216,89842.0,89841.0,0.04161803]
[1763570567570,0.7216,89842.0,89841.0,0.00219803]
[1763570567770,0.76459,89842.0,89841.0,0.00219803]
[1763570568573,0.76459,89842.0,89841.0,0.00319803]
[1763570568768,0.76459,89842.0,89841.0,0.11458933]
[1763570569169,0.3608,89842.0,89841.0,0.15400933]
[1763570569476,0.00016694,89850.0,89849.0,0.1508014]
[1763570569677,0.00016694,89850.0,89849.0,0.15299943]
[1763570571368,0.05641694,89850.0,89849.0,0.00219803]
[1763570571971,0.03454694,89850.0,89849.0,0.00219803]
[1763570572168,0.00016694,89850.0,89849.0,0.00219803]
[1763570573375,0.03454694,89850.0,89849.0,0.11357943]
[1763570573576,0.00016694,89850.0,89849.0,0.15299943]
[1763570574572,0.00016694,89850.0,89849.0,0.19281406]
[1763570575072,0.00016694,89850.0,89849.0,0.15299943]
[1763570575271,0.1084,89864.0,89849.0,0.15299943]
[1763570575272,0.3608,89879.0,89878.0,0.1113455]
[1763570575470,0.3608,89879.0,89878.0,0.11354353]
[1763570576076,0.40379,89879.0,89878.0,0.11354353]
[1763570576278,0.3608,89879.0,89878.0,0.15336843]
[1763570576470,0.3618,89879.0,89878.0,0.15336843]
[1763570576674,0.3618,89879.0,89878.0,0.11354353]
[1763570577182,0.40479,89879.0,89878.0,0.15336843]
[1763570577480,0.40479,89879.0,89878.0,0.00219803]
[1763570577880,0.40379,89879.0,89878.0,0.00219803]
[1763570578181,0.40479,89879.0,89878.0,0.15336843]
[1763570578378,0.40479,89879.0,89878.0,0.04202293]
[1763570578583,0.40479,89879.0,89878.0,0.00219803]
[1763570582776,0.40479,89879.0,89870.0,0.03999184]
[1763570582777,0.04482,89871.0,89870.0,0.00016694]
[1763570583073,0.04482,89871.0,89870.0,0.00236497]
[1763570583074,0.40562,89871.0,89870.0,0.00236497]
[1763570583784,0.40562,89871.0,89864.0,0.0398249]
[1763570583785,0.05787,89866.0,89864.0,0.0398249]
[1763570583974,0.04482,89864.0,89862.0,0.0398249]
[1763570584178,0.04482,89857.0,89856.0,0.20910673]
[1763570584378,0.40562,89857.0,89856.0,0.21130476]
[1763570584690,0.40562,89857.0,89856.0,0.00219803]
[1763570585381,0.04482,89850.0,89849.0,0.0398249]
[1763570585582,0.04482,89850.0,89849.0,0.00219803]
[1763570585891,0.4,89849.0,89843.0,0.03110668]
[1763570586090,0.36299803,89844.0,89820.0,0.0133]
[1763570586380,0.00219803,89844.0,89824.0,0.00073267]
[1763570586583,0.3608,89826.0,89825.0,0.02107]
[1763570586786,0.3608,89826.0,89825.0,0.02180267]
[1763570586787,0.36299803,89826.0,89825.0,0.02180267]
[1763570587490,0.36299803,89826.0,89825.0,0.00073267]
[1763570587785,0.36299803,89826.0,89823.0,8.134e-05]
[1763570587974,0.36299803,89826.0,89823.0,0.00081401]
[1763570592587,0.36299803,89826.0,89825.0,0.04389]
[1763570592778,0.36299803,89826.0,89825.0,0.04462267]
[1763570592977,0.36299803,89826.0,89825.0,0.02180267]
[1763570593180,0.36299803,89826.0,89816.0,0.31460888]
[1763570593379,0.3608,89817.0,89816.0,0.35849888]
[1763570593684,0.36299803,89817.0,89816.0,0.04389]
[1763570594274,0.36307937,89817.0,89816.0,0.04389]
[1763570594687,0.36307937,89817.0,89816.0,0.04489]
[1763570595073,0.36307937,89817.0,89816.0,0.04589]
[1763570595280,0.36307937,89817.0,89816.0,0.002]
[1763570595680,0.36307937,89817.0,89808.0,0.00016694]
[1763570595875,0.3608,89809.0,89808.0,0.00016694]
[1763570596083,0.47147803,89809.0,89808.0,0.00016694]
[1763570596986,0.47147803,89809.0,89808.0,0.00116694]
[1763570597689,0.47143803,89809.0,89808.0,0.04505694]
[1763570597892,0.47143803,89809.0,89808.0,0.04605694]
[1763570598281,0.47143803,89809.0,89808.0,0.00216694]
[1763570598481,0.47143803,89809.0,89808.0,0.00116694]
[1763570598775,0.47143803,89809.0,89808.0,0.001]
[1763570599480,0.47143803,89809.0,89790.0,0.21895673]
[1763570599686,0.3608,89791.0,89790.0,0.05374]
[1763570599884,0.36307937,89791.0,89790.0,0.05374]
[1763570600083,0.36307937,89791.0,89790.0,0.03092]
[1763570600490,0.47151937,89791.0,89790.0,0.01185]
[1763570601302,0.47151937,89791.0,89790.0,0.01385]
[1763570601584,0.47151937,89791.0,89790.0,0.002]
[1763570602589,0.47151937,89791.0,89786.0,0.1114594]
[1763570602890,0.47151937,89791.0,89783.0,0.111463]
[1763570603090,0.47151937,89791.0,89782.0,0.01346704]
[1763570603294,0.3608,89783.0,89782.0,0.16882154]
[1763570603486,0.2558,89783.0,89782.0,0.16882154]
[1763570603687,0.36088134,89791.0,89790.0,0.1553446]
[1763570603899,0.40789937,89791.0,89790.0,0.1553446]
[1763570604083,0.36307937,89791.0,89790.0,0.1553446]
[1763570604780,0.38505937,89791.0,89790.0,0.1553446]
[1763570604977,0.38505937,89791.0,89782.0,0.00016704]
[1763570604978,0.04498,89783.0,89782.0,0.00016704]
[1763570605181,0.04717803,89783.0,89782.0,0.00016704]
[1763570605380,0.00219803,89783.0,89782.0,0.04586704]
[1763570606088,0.04717803,89783.0,89782.0,0.00016704]
[1763570606490,0.40797803,89783.0,89782.0,0.00016704]
[1763570606689,0.40797803,89783.0,89782.0,0.00116704]
[1763570607079,0.04717803,89783.0,89782.0,0.00116704]
[1763570607292,0.04717803,89783.0,89782.0,0.00016704]
[1763570607792,0.04717803,89783.0,89782.0,0.04586704]
[1763570607993,0.04717803,89783.0,89782.0,0.04686704]
[1763570608292,0.00219803,89783.0,89782.0,0.04686704]
[1763570608689,0.02487803,89783.0,89782.0,0.04686704]
[1763570608892,0.04717803,89783.0,89782.0,0.04586704]
[1763570609294,0.04717803,89783.0,89782.0,0.13424154]
[1763570609496,0.36088134,89791.0,89790.0,0.1571546]
[1763570609697,0.36307937,89791.0,89790.0,0.1571546]
[1763570610991,0.00227937,89791.0,89790.0,0.5179546]
[1763570611488,8.134e-05,89791.0,89790.0,0.5179546]
[1763570611686,0.15338,89804.0,89796.0,0.01385]
[1763570611889,0.3608,89801.0,89797.0,0.1114459]
[1763570612085,0.00219803,89800.0,89799.0,0.04335]
[1763570612494,0.02503803,89800.0,89799.0,0.04335]
[1763570612892,0.04812803,89800.0,89799.0,0.04335]
[1763570613594,0.00219803,89800.0,89799.0,0.04335]
[1763570613782,0.00016704,89808.0,89807.0,0.04335]
[1763570613987,0.00016704,89808.0,89807.0,0.04554803]
[1763570613988,0.00089971,89808.0,89807.0,0.04554803]
[1763570614292,0.04682971,89808.0,89807.0,0.00219803]
[1763570614593,0.04593,89792.0,89791.0,0.08849858]
[1763570614791,0.04666267,89792.0,89791.0,0.00219803]
[1763570617292,0.00073267,89792.0,89783.0,0.05973735]
[1763570617483,0.04593,89784.0,89783.0,0.00219803]
[1763570617682,0.04666267,89784.0,89783.0,0.00219803]
[1763570618592,0.02357267,89784.0,89783.0,0.04554803]
[1763570618798,0.00073267,89784.0,89783.0,0.04554803]
[1763570619096,0.3608,89795.0,89783.0,0.04554803]
[1763570619301,0.3608,89804.0,89803.0,0.1547885]
[1763570619598,0.40746267,89804.0,89803.0,0.02443803]
[1763570619799,0.40746267,89804.0,89803.0,0.00219803]
[1763570619986,0.40746267,89804.0,89803.0,0.02443803]
[1763570620185,0.40746267,89804.0,89803.0,0.04554803]
[1763570620391,0.38437267,89804.0,89803.0,0.04554803]
[1763570620594,0.36153267,89804.0,89803.0,0.04554803]
[1763570621299,0.0395357,89845.0,89832.0,0.02224]
[1763570621499,0.00073267,89837.0,89836.0,0.04335]
[1763570621703,0.04666267,89837.0,89836.0,0.00219803]
[1763570622195,0.40746267,89837.0,89836.0,0.00219803]
[1763570624703,0.04593,89829.0,89828.0,0.00016704]
[1763570624996,0.04666267,89829.0,89828.0,0.00236507]
[1763570625189,0.40746267,89829.0,89828.0,0.00236507]
[1763570628197,0.40746267,89829.0,89828.0,0.00016704]
[1763570631991,0.40746267,89829.0,89828.0,0.02460507]
[1763570632192,0.40746267,89829.0,89828.0,0.00236507]
[1763570632400,0.40746267,89829.0,89828.0,0.02460507]
[1763570633299,0.40746267,89829.0,89828.0,0.00236507]
[1763570633603,0.40746267,89829.0,89828.0,0.04571507]
[1763570633804,0.38437267,89829.0,89828.0,0.04571507]
[1763570634101,0.36153267,89829.0,89828.0,0.04571507]
[1763570634307,0.00073267,89829.0,89828.0,0.04571507]
[1763570635113,0.40746267,89829.0,89828.0,0.04571507]
[1763570635311,0.40746267,89829.0,89828.0,0.02460507]
[1763570635601,0.36153267,89829.0,89828.0,0.04571507]
[1763570635807,0.00073267,89829.0,89828.0,0.15712247]
[1763570636398,0.00073267,89829.0,89828.0,0.04571507]
[1763570636601,0.04666267,89829.0,89828.0,0.04571507]
[1763570637308,0.01991389,89829.0,89828.0,0.04571507]
[1763570637701,0.40355389,89829.0,89828.0,0.04571507]
[1763570639800,0.40355389,89829.0,89828.0,0.02460507]
[1763570640201,0.40355389,89829.0,89828.0,0.00236507]
[1763570640613,0.40355389,89829.0,89828.0,0.00016704]
[1763570641509,0.40355389,89829.0,89828.0,0.00236507]
[1763570641806,0.51187389,89829.0,89828.0,0.00016704]
[1763570641995,0.51187389,89829.0,89815.0,0.05994296]
[1763570642202,0.0434,89816.0,89815.0,0.06214099]
[1763570642401,0.0434,89816.0,89815.0,0.00219803]
[1763570643002,0.0434,89816.0,89815.0,0.04758803]
[1763570643207,0.3608,89820.0,89819.0,0.04539]
[1763570643404,0.00016704,89824.0,89819.0,0.04539]
[1763570643405,0.02139704,89824.0,89823.0,0.04539]
[1763570643712,0.00016704,89824.0,89823.0,0.04758803]
[1763570644004,0.3608,89840.0,89839.0,0.04539]
[1763570644202,0.10832,89847.0,89846.0,0.1567751]
[1763570644402,0.10832,89861.0,89848.0,0.01311]
[1763570644602,0.10832,89861.0,89853.0,0.1113763]
[1763570644803,0.02123,89861.0,89860.0,0.04758803]
[1763570645106,0.02139694,89866.0,89865.0,0.02287]
[1763570645307,0.40436694,89866.0,89865.0,0.02506803]
[1763570645605,0.40436694,89866.0,89865.0,0.00219803]
[1763570645807,0.40436694,89866.0,89865.0,0.02471803]
[1763570646110,0.3608,89883.0,89882.0,0.04539]
[1763570646322,0.3608,89883.0,89882.0,0.04758803]
[1763570646517,0.38203,89883.0,89882.0,0.04758803]
[1763570646814,0.0434,89855.0,89854.0,0.05978809]
[1763570647009,0.0434,89855.0,89854.0,0.04758803]
[1763570647314,0.0434,89855.0,89854.0,0.00219803]
[1763570648010,0.04492687,89855.0,89854.0,0.00219803]
[1763570648209,0.04492687,89855.0,89848.0,0.00010967]
[1763570648210,0.0434,89849.0,89848.0,0.00010967]
[1763570648413,0.15168,89849.0,89848.0,0.00010967]
[1763570648615,0.0434,89832.0,89831.0,0.011012]
[1763570648823,0.4042,89832.0,89831.0,0.00219803]
[1763570649115,0.40572687,89832.0,89831.0,0.00219803]
[1763570649614,0.40581897,89832.0,89831.0,0.00219803]
[1763570650217,0.40581897,89832.0,89831.0,0.06198612]
[1763570650609,0.36241897,89832.0,89831.0,0.10737612]
[1763570650810,0.00161897,89832.0,89831.0,0.04758803]
[1763570651005,0.00161897,89832.0,89831.0,0.04858803]
[1763570651516,0.00161897,89832.0,89831.0,0.04758803]
[1763570652104,0.02284897,89832.0,89831.0,0.04758803]
[1763570652423,0.00161897,89832.0,89831.0,0.04758803]
[1763570652614,0.04501897,89832.0,89831.0,0.00219803]
[1763570653014,0.0434,89824.0,89823.0,0.00016694]
[1763570653212,0.04492687,89824.0,89823.0,0.00016694]
[1763570653513,0.0434,89808.0,89807.0,0.05993287]
[1763570653716,0.0434,89805.0,89804.0,0.05993287]
[1763570653921,0.0434,89805.0,89804.0,0.00219803]
[1763570654308,0.04492687,89805.0,89804.0,0.00219803]
[1763570654719,0.40472687,89805.0,89804.0,0.00219803]
[1763570659113,0.0434,89797.0,89796.0,0.00016704]
[1763570659317,0.04492687,89797.0,89796.0,0.00016704]
[1763570659522,0.0434,89794.0,89793.0,0.00010546]
[1763570659924,0.765,89794.0,89793.0,0.00010546]
[1763570660326,0.0434,89776.0,89775.0,0.00204585]
[1763570660524,0.01663683,89776.0,89775.0,0.00424388]
[1763570661128,0.00016704,89784.0,89780.0,0.111467]
[1763570661342,0.00016704,89784.0,89783.0,0.15752446]
[1763570661526,0.00029421,89784.0,89783.0,0.15752446]
[1763570662030,0.02261421,89784.0,89783.0,0.00219803]
[1763570663231,0.02261421,89784.0,89783.0,0.02510803]
[1763570663422,0.02261421,89784.0,89783.0,0.02610803]
[1763570664429,0.02261421,89784.0,89783.0,0.02510803]
[1763570665825,0.02261421,89784.0,89783.0,0.00219803]
[1763570666621,0.00029421,89784.0,89783.0,0.04620803]
[1763570666826,0.00029421,89784.0,89783.0,0.40700803]
[1763570667037,0.3608,89793.0,89792.0,0.1554621]
[1763570667333,0.10832,89806.0,89792.0,0.15766013]
[1763570667334,0.3608,89803.0,89792.0,0.15766013]
[1763570667636,0.0229,89793.0,89792.0,0.00219803]
[1763570668133,0.02298796,89793.0,89792.0,0.00219803]
[1763570668730,0.0229,89785.0,89784.0,0.00016704]